bitfinex/quotes_ETHUSD_20250414
["timestamp","ask_amount","ask_price","bid_price","bid_amount"]
[1744623533621,10.44468228,1633.8,1633.4,5.72987]
[1744623533820,4.89686,1633.7,1633.4,5.72987]
[1744623534027,4.89686,1633.7,1633.4,10.62752]
[1744623534192,4.9566912,1633.7,1633.4,10.62752]
[1744623534595,10.38470108,1633.8,1633.5,4.89737]
[1744623534926,10.38470108,1633.8,1633.2,4.89819]
[1744623534927,3.8262,1633.5,1633.2,4.89819]
[1744623535122,7.01218081,1633.5,1633.2,4.89819]
[1744623535326,11.90964081,1633.5,1633.2,4.89819]
[1744623535525,11.90964081,1633.5,1633.2,9.79642]
[1744623535730,11.90964081,1633.5,1633.2,4.89819]
[1744623535931,13.59034289,1633.5,1633.2,4.89819]
[1744623536105,13.53051169,1633.5,1633.2,4.89819]
[1744623537343,18.42818169,1633.5,1633.2,4.89819]
[1744623537507,8.63305169,1633.5,1633.3,4.89797]
[1744623537709,8.69288289,1633.5,1633.3,4.89797]
[1744623538109,5.56673328,1633.5,1633.3,4.89796]
[1744623538305,3.0,1633.5,1633.3,9.79592]
[1744623538517,0.0598312,1633.6,1633.5,4.89745]
[1744623538518,3.0598312,1633.6,1633.5,4.89745]
[1744623538723,0.7986,1633.7,1633.6,4.89715]
[1744623538917,0.7986,1633.7,1633.5,4.89732]
[1744623539539,10.22856123,1633.7,1633.4,4.89775]
[1744623539717,5.33167123,1633.7,1633.4,9.79539]
[1744623539915,10.22864123,1633.7,1633.4,4.89764]
[1744623540114,4.89748,1633.5,1633.2,4.89822]
[1744623540328,9.79516,1633.5,1633.2,4.89822]
[1744623540544,4.89748,1633.5,1633.2,4.89822]
[1744623540744,0.825,1633.4,1633.2,4.89822]
[1744623540928,0.0598312,1633.6,1633.1,4.89865]
[1744623540929,5.7627912,1633.6,1633.1,4.89865]
[1744623541133,0.8655312,1633.6,1633.3,4.89805]
[1744623541331,0.8655312,1633.6,1633.2,1.270465]
[1744623541332,5.7627012,1633.6,1633.2,5.67887]
[1744623541641,5.7627012,1633.6,1633.2,5.67886]
[1744623541814,4.89755,1633.5,1633.2,10.57712]
[1744623542648,10.6599912,1633.6,1633.3,4.89804]
[1744623542812,12.4919124,1633.6,1633.3,4.89804]
[1744623543145,12.4320812,1633.6,1633.3,4.89804]
[1744623543351,0.0598312,1633.5,1633.3,9.79599]
[1744623543549,0.0598312,1633.5,1633.4,4.89775]
[1744623543928,17.45314084,1633.7,1633.3,4.89795]
[1744623543929,7.65922084,1633.7,1633.5,4.89745]
[1744623544120,1.59290243,1633.7,1633.5,9.7949]
[1744623544319,4.89833,1633.3,1633.0,0.8292]
[1744623544554,8.7639412,1633.2,1632.9,4.89916]
[1744623544761,8.7639412,1633.2,1632.9,9.7983]
[1744623545062,3.8655312,1633.2,1632.9,4.89913]
[1744623545215,3.8655312,1633.2,1633.0,4.89892]
[1744623545420,3.8655312,1633.2,1632.9,9.79826]
[1744623545622,5.7639512,1633.2,1632.9,9.79829]
[1744623545869,5.7639512,1633.2,1632.9,4.89913]
[1744623546023,0.57035075,1633.1,1632.9,9.79827]
[1744623546770,0.57035075,1633.1,1632.9,4.89913]
[1744623547058,0.57035075,1633.1,1633.0,4.89895]
[1744623547262,0.8655312,1633.2,1633.0,4.89895]
[1744623548532,3.12614961,1633.3,1632.9,4.89925]
[1744623548720,3.8773312,1633.4,1633.2,4.89835]
[1744623548926,0.8773312,1633.6,1633.4,4.89766]
[1744623549157,0.31887618,1633.8,1633.5,9.7949]
[1744623549158,3.91094961,1633.8,1633.5,9.7949]
[1744623549336,3.91094961,1633.8,1633.6,4.89704]
[1744623549522,3.91094961,1633.8,1633.5,4.89745]
[1744623549723,5.09767069,1633.8,1633.5,4.89745]
[1744623550045,3.91094961,1633.8,1633.5,9.79479]
[1744623550250,3.91094961,1633.8,1633.5,4.89734]
[1744623550615,8.80755961,1633.8,1633.4,5.70287]
[1744623550818,13.70435961,1633.8,1633.4,5.70287]
[1744623551089,4.89686,1633.7,1633.4,5.70287]
[1744623551737,6.26730196,1633.7,1633.4,4.89767]
[1744623551922,5.68141,1633.8,1633.5,4.89726]
[1744623552127,3.0598312,1633.8,1633.6,4.89701]
[1744623552728,3.0,1633.8,1633.6,4.89701]
[1744623553053,3.0,1633.8,1633.5,5.66867]
[1744623553250,3.0,1633.8,1633.6,4.89715]
[1744623555165,0.0598312,1633.9,1633.8,4.89656]
[1744623555338,0.0598312,1633.9,1633.7,4.89658]
[1744623556029,8.08225081,1633.9,1633.5,5.66874]
[1744623556245,8.08225081,1633.9,1633.6,4.89715]
[1744623556539,8.08225081,1633.9,1633.6,9.79421]
[1744623557329,8.08225081,1633.9,1633.6,9.79413]
[1744623557542,8.08225081,1633.9,1633.6,4.89706]
[1744623557756,9.68007689,1633.9,1633.6,9.79412]
[1744623557957,9.68007689,1633.9,1633.6,4.89706]
[1744623558573,9.68007689,1633.9,1633.6,9.79409]
[1744623558765,3.78,1633.8,1633.3,0.7947]
[1744623558972,3.18598081,1633.7,1633.3,0.7947]
[1744623559268,3.18598081,1633.7,1633.3,1.49567]
[1744623559672,3.18598081,1633.7,1633.3,0.70097]
[1744623559867,5.70338,1633.3,1632.9,4.89918]
[1744623560162,3.8650312,1633.3,1633.1,4.89863]
[1744623560458,3.8650312,1633.3,1633.0,9.7977]
[1744623560655,3.8650312,1633.3,1633.0,10.77747]
[1744623560866,8.7632312,1633.3,1633.0,0.97977]
[1744623561159,13.6615112,1633.3,1633.0,0.97977]
[1744623561327,13.60168,1633.3,1633.0,0.97977]
[1744623562227,4.9582112,1633.2,1632.8,4.89945]
[1744623562530,4.89869,1633.1,1632.8,9.79887]
[1744623562738,0.0598312,1633.2,1632.9,4.89915]
[1744623562919,16.78751081,1633.3,1632.9,10.6072]
[1744623563126,0.0598312,1633.2,1632.9,5.70805]
[1744623563349,4.9581912,1633.2,1632.9,5.70805]
[1744623563552,4.9582312,1633.2,1632.8,4.89948]
[1744623563760,4.89875,1633.1,1632.8,4.89948]
[1744623564654,4.89875,1633.1,1632.7,10.59668]
[1744623565255,9.79762,1633.1,1632.7,10.59668]
[1744623565462,4.89875,1633.1,1632.7,10.59668]
[1744623565832,5.7197012,1633.0,1632.7,4.89984]
[1744623566036,5.7197012,1633.0,1632.7,9.79957]
[1744623566362,5.7197012,1633.0,1632.7,4.89973]
[1744623567762,5.7197012,1633.0,1632.7,9.79946]
[1744623567965,5.7197012,1633.0,1632.7,4.89973]
[1744623568362,5.7197012,1633.0,1632.7,9.79947]
[1744623568538,5.7197012,1633.0,1632.7,4.89973]
[1744623568744,10.6188312,1633.0,1632.6,9.80022]
[1744623568940,5.7197012,1633.0,1632.7,9.7995]
[1744623569160,5.65987,1633.0,1632.7,9.7995]
[1744623569668,4.90015,1632.6,1632.5,2.50448524]
[1744623569968,4.9599812,1632.6,1632.5,2.50448524]
[1744623570370,8.7298812,1632.6,1632.5,2.50448524]
[1744623570567,10.89548828,1632.6,1632.5,2.50448524]
[1744623570754,8.7298812,1632.6,1632.5,2.50448524]
[1744623575741,7.9599812,1632.6,1632.5,2.50448524]
[1744623575939,5.69399,1632.8,1632.5,7.40493524]
[1744623576139,11.86368,1632.9,1632.6,4.90004]
[1744623576348,6.2298312,1632.9,1632.7,4.89973]
[1744623576747,6.17,1632.9,1632.7,5.66273]
[1744623576982,6.2298312,1632.9,1632.7,5.66273]
[1744623577284,6.2298312,1632.9,1632.7,0.763]
[1744623579769,6.2298312,1632.9,1632.6,5.65887]
[1744623579970,6.2298312,1632.9,1632.6,11.86531452]
[1744623580178,6.2298312,1632.9,1632.5,7.40489524]
[1744623580371,4.89994,1632.7,1632.5,2.50448524]
[1744623580576,7.90015,1632.6,1632.5,2.50448524]
[1744623580947,7.9599812,1632.6,1632.5,2.50448524]
[1744623581553,9.24597332,1632.6,1632.5,2.50448524]
[1744623581980,13.18682293,1632.6,1632.5,2.50448524]
[1744623582180,8.69276,1632.2,1632.1,0.05]
[1744623582484,18.03290961,1632.2,1632.1,0.05]
[1744623582695,20.32631957,1632.2,1632.1,0.05]
[1744623585304,10.0054,1632.2,1632.1,0.05]
[1744623585451,10.0652312,1632.2,1632.1,0.05]
[1744623585771,3.0598312,1632.2,1632.1,0.05]
[1744623586086,7.9611912,1632.2,1632.1,0.05]
[1744623587276,9.3140912,1632.2,1632.1,0.05]
[1744623587603,11.53835328,1632.2,1632.1,0.05]
[1744623590190,17.70835328,1632.2,1632.1,1e-05]
[1744623590361,9.27746,1632.1,1632.0,0.01]
[1744623590567,3.0,1631.5,1631.3,0.005]
[1744623590752,0.0598312,1631.4,1631.3,0.005]
[1744623592408,0.0598312,1631.5,1631.3,0.005]
[1744623592614,0.0598312,1631.6,1631.4,4.90364]
[1744623592919,0.0598312,1631.6,1631.3,4.90896]
[1744623593412,4.9630212,1631.6,1631.3,4.90896]
[1744623593607,9.8663712,1631.6,1631.3,4.90896]
[1744623593817,9.8663512,1631.6,1631.3,4.90896]
[1744623593987,5.89016512,1631.5,1631.3,0.005]
[1744623594312,0.0598312,1631.4,1631.3,0.005]
[1744623594506,5.94999632,1631.5,1631.3,0.005]
[1744623595202,10.85363632,1631.5,1631.3,0.005]
[1744623595399,12.89287324,1631.4,1631.3,0.005]
[1744623595908,12.89287324,1631.4,1631.3,0.2910162]
[1744623595909,28.95702285,1631.4,1631.3,0.2910162]
[1744623596086,29.6847348,1631.4,1631.3,0.2860162]
[1744623596292,28.95702285,1631.4,1631.3,0.05291453]
[1744623596988,7.90436,1631.2,1631.1,0.05]
[1744623597193,12.45450681,1631.2,1631.1,0.05]
[1744623597396,12.39467561,1631.2,1631.1,0.05]
[1744623598007,13.21347561,1631.2,1631.1,0.05]
[1744623598402,9.268526,1631.2,1631.1,0.05]
[1744623598611,9.3283572,1631.2,1631.1,0.05]
[1744623600645,4.4239972,1631.2,1631.1,0.05]
[1744623600810,12.40115938,1631.5,1631.1,5.73636]
[1744623601126,4.9636012,1631.4,1631.1,5.73636]
[1744623601327,0.0598312,1631.4,1631.1,5.73629]
[1744623601498,4.9636812,1631.4,1631.1,10.64085]
[1744623601696,4.9636812,1631.4,1631.1,10.64083]
[1744623601898,0.0598312,1631.4,1631.2,4.90424]
[1744623602125,0.0598312,1631.4,1631.1,5.73626]
[1744623602427,4.9637312,1631.4,1631.1,5.73626]
[1744623602594,0.0598312,1631.4,1631.1,10.64081]
[1744623602791,0.0598312,1631.4,1631.3,4.90406]
[1744623603032,3.0598312,1631.6,1631.4,4.90362]
[1744623603192,0.0598312,1631.6,1631.5,4.90346]
[1744623603399,0.0598312,1631.7,1631.4,5.71002]
[1744623603705,0.0598312,1631.7,1631.5,4.90332]
[1744623604027,0.0598312,1631.7,1631.4,5.71002]
[1744623604028,0.0598312,1631.7,1631.4,10.6139]
[1744623604211,0.0598312,1631.7,1631.5,4.90338]
[1744623604418,0.0598312,1632.1,1631.8,4.90243]
[1744623604924,0.0598312,1632.1,1631.9,4.90206]
[1744623605119,0.0598312,1632.2,1632.0,0.7839]
[1744623605502,4.9612112,1632.2,1632.0,0.7839]
[1744623605700,5.94744332,1632.2,1632.0,0.7839]
[1744623607034,6.22,1632.4,1632.1,4.90166]
[1744623607225,15.9705,1632.6,1632.2,4.90118]
[1744623607398,3.0598312,1632.5,1632.2,4.90118]
[1744623607598,3.0598312,1632.5,1632.2,9.80242]
[1744623608233,3.0598312,1632.5,1632.2,4.90118]
[1744623608403,4.9603212,1632.5,1632.2,4.90118]
[1744623608598,7.9603212,1632.5,1632.2,4.90118]
[1744623608934,4.90205,1632.0,1631.7,5.73475]
[1744623609137,4.9618812,1632.0,1631.7,5.73475]
[1744623609940,0.0598312,1632.0,1631.7,10.63748]
[1744623610308,0.0598312,1632.0,1631.8,4.90253]
[1744623610638,0.0598312,1632.0,1631.7,5.73473]
[1744623610838,0.0598312,1632.0,1631.7,10.63745]
[1744623611135,0.0598312,1632.0,1631.7,5.73472]
[1744623611340,4.9617912,1632.0,1631.7,10.63745]
[1744623611635,4.9617912,1632.0,1631.7,5.73472]
[1744623611813,0.0598312,1632.0,1631.7,5.73472]
[1744623612018,0.0598312,1632.0,1631.7,10.63747]
[1744623612640,4.9618212,1632.0,1631.7,5.73472]
[1744623612949,6.02544432,1632.0,1631.7,5.73472]
[1744623613449,6.02544432,1632.0,1631.7,10.63749]
[1744623613615,6.02544432,1632.0,1631.7,5.73472]
[1744623613943,6.02544432,1632.0,1631.7,10.63748]
[1744623614318,6.02544432,1632.0,1631.7,5.73472]
[1744623614518,6.02544432,1632.0,1631.7,10.63746]
[1744623614756,0.0598312,1632.0,1631.7,10.63746]
[1744623614951,4.9618612,1632.0,1631.7,5.73472]
[1744623615132,4.9618612,1632.0,1631.7,10.63748]
[1744623615517,4.9618612,1632.0,1631.7,5.73472]
[1744623615717,4.9618612,1632.0,1631.7,10.63745]
[1744623615949,4.9618612,1632.0,1631.7,5.73472]
[1744623616151,10.92765932,1632.0,1631.7,5.73472]
[1744623616348,4.90279,1631.8,1631.5,5.71579]
[1744623616527,0.0598312,1631.7,1631.5,0.8125]
[1744623616726,4.9626212,1631.8,1631.5,0.8125]
[1744623616932,5.94911532,1631.8,1631.5,0.8125]
[1744623617159,5.94911532,1631.8,1631.5,5.71594]
[1744623617361,10.85186532,1631.8,1631.5,5.71594]
[1744623617655,5.94907532,1631.8,1631.5,10.61928]
[1744623617853,5.94907532,1631.8,1631.5,5.71584]
[1744623618160,4.04632532,1631.8,1631.5,0.8125]
[1744623618355,3.0598312,1631.8,1631.6,4.90305]
[1744623618955,7.9624012,1631.8,1631.5,5.71585]
[1744623619158,12.8650912,1631.8,1631.5,5.71585]
[1744623619359,12.80526,1631.8,1631.5,5.71585]
[1744623619760,12.80526,1631.8,1631.4,4.90371]
[1744623619761,4.90355,1631.5,1631.3,0.7924]
[1744623620054,1.0405082,1631.5,1631.3,5.69642]
[1744623620259,0.0598312,1631.5,1631.3,5.69635]
[1744623620457,0.0598312,1631.7,1631.5,4.90332]
[1744623620655,3.0598312,1631.8,1631.4,4.90368]
[1744623620953,4.9029,1631.7,1631.4,4.90368]
[1744623621255,4.9630312,1631.6,1631.3,5.69637]
[1744623621755,4.9630312,1631.6,1631.3,5.69634]
[1744623621963,0.0598312,1631.6,1631.4,4.90362]
[1744623622133,0.0598312,1631.6,1631.3,0.7924]
[1744623622462,0.0598312,1631.6,1631.3,5.69622]
[1744623622664,3.63940932,1631.6,1631.3,5.69622]
[1744623622853,8.54265932,1631.6,1631.3,5.69622]
[1744623623052,13.44598932,1631.6,1631.3,5.69622]
[1744623623356,8.48282812,1631.6,1631.3,5.69622]
[1744623623524,8.54265932,1631.6,1631.3,5.69622]
[1744623623729,8.54265932,1631.6,1631.3,10.60016]
[1744623623928,3.63940932,1631.6,1631.3,10.60017]
[1744623624129,3.63940932,1631.6,1631.3,5.69622]
[1744623624353,5.54268932,1631.6,1631.3,5.69622]
[1744623624943,5.54268932,1631.6,1631.3,4.90382]
[1744623624944,0.55426893,1631.5,1631.3,4.90382]
[1744623626635,5.54268932,1631.6,1631.3,4.90382]
[1744623626847,0.63940932,1631.6,1631.4,4.90372]
[1744623627163,0.0598312,1631.6,1631.3,4.90404]
[1744623627366,0.0598312,1631.6,1631.4,4.90364]
[1744623627767,0.0598312,1631.6,1631.3,9.80812]
[1744623628431,7.9630112,1631.6,1631.3,4.90406]
[1744623629431,7.9630112,1631.6,1631.2,9.80862]
[1744623629667,8.84261232,1631.6,1631.3,4.90403]
[1744623629863,3.0598312,1631.6,1631.4,9.8075]
[1744623630027,0.0598312,1631.7,1631.4,5.66808]
[1744623630234,0.0598312,1631.7,1631.6,4.90316]
[1744623630433,0.0598312,1631.8,1631.6,4.90316]
[1744623630834,3.0598312,1631.8,1631.7,4.90286]
[1744623631051,3.0598312,1631.8,1631.6,9.80611]
[1744623631253,3.0,1631.8,1631.7,0.7901]
[1744623634670,3.0,1631.8,1631.6,5.68375]
[1744623635565,3.0,1631.8,1631.6,10.58681]
[1744623635967,0.0598312,1631.9,1631.6,0.7807]
[1744623636169,6.17,1632.3,1631.8,0.7985]
[1744623636370,5.67366,1632.4,1632.0,9.80371]
[1744623636562,4.90106,1632.3,1632.0,9.80368]
[1744623636762,4.90096,1632.4,1632.1,5.70013]
[1744623637166,4.90096,1632.4,1632.1,5.70004]
[1744623637359,4.9005,1632.5,1632.1,5.70004]
[1744623637360,9.80107,1632.5,1632.1,5.70004]
[1744623637558,9.89703329,1632.5,1632.1,5.70004]
[1744623637864,5.09719906,1632.4,1632.1,5.70003]
[1744623638174,10.05798026,1632.4,1632.1,0.7985]
[1744623638776,0.25613026,1632.4,1632.1,10.60171]
[1744623640465,3.38969319,1632.4,1632.1,0.7985]
[1744623640792,3.38969319,1632.4,1632.0,10.58909]
[1744623640793,5.24014932,1632.3,1632.0,10.58909]
[1744623640983,0.19646142,1632.2,1632.1,4.90165]
[1744623641285,0.0598312,1632.4,1632.1,9.8033]
[1744623641482,0.19646142,1632.2,1632.1,9.8033]
[1744623641683,0.0598312,1632.4,1632.1,10.86217]
[1744623641883,0.19646142,1632.2,1632.1,9.8033]
[1744623642095,0.0598312,1632.4,1632.1,9.8033]
[1744623642296,0.19646142,1632.2,1632.1,9.8033]
[1744623642898,4.9605912,1632.4,1632.1,9.80319]
[1744623643096,0.19646142,1632.2,1632.1,4.90154]
[1744623643270,4.9605912,1632.4,1632.1,4.90154]
[1744623643471,0.19646142,1632.2,1632.1,4.90154]
[1744623643797,0.19661405,1632.2,1632.1,9.8031]
[1744623644005,4.9605912,1632.4,1632.1,9.8031]
[1744623644168,0.19710715,1632.3,1632.1,9.8031]
[1744623644369,4.9605912,1632.4,1632.1,9.8031]
[1744623644685,0.19710715,1632.3,1632.1,9.8031]
[1744623644890,0.19710715,1632.3,1632.1,4.90154]
[1744623645103,4.9605912,1632.4,1632.1,4.90154]
[1744623645303,0.19661405,1632.2,1632.1,4.90154]
[1744623645604,0.19661405,1632.2,1632.1,5.960423]
[1744623645764,4.9605912,1632.4,1632.1,5.960423]
[1744623645970,0.19710715,1632.3,1632.1,10.861963]
[1744623646167,4.9605912,1632.4,1632.1,10.861963]
[1744623646389,0.19710715,1632.3,1632.1,10.861963]
[1744623646578,8.42166461,1632.5,1632.2,4.90136]
[1744623646783,0.18345482,1632.4,1632.2,9.80261]
[1744623646982,0.18345482,1632.4,1632.2,4.90125]
[1744623647182,0.18345482,1632.4,1632.2,5.9874213]
[1744623647503,0.18345482,1632.4,1632.3,5.70005]
[1744623647875,4.89935,1632.9,1632.6,4.8999]
[1744623648083,4.89935,1632.9,1632.6,9.79994]
[1744623648309,3.0,1632.9,1632.6,9.79994]
[1744623648498,3.0,1632.9,1632.7,0.799]
[1744623648887,7.9591112,1632.9,1632.7,0.799]
[1744623649780,7.9591112,1632.9,1632.7,5.69882]
[1744623649781,3.0,1632.9,1632.7,5.69882]
[1744623649974,3.0,1632.9,1632.7,0.799]
[1744623650374,3.0,1632.9,1632.7,1.85892]
[1744623650575,4.89989,1632.7,1632.5,0.7547]
[1744623650788,4.9597212,1632.7,1632.5,0.7547]
[1744623651579,4.89989,1632.7,1632.5,0.7547]
[1744623651992,7.89932,1632.9,1632.5,5.65507]
[1744623652198,12.79872,1632.9,1632.6,5.465607]
[1744623652394,12.79872,1632.9,1632.6,0.565507]
[1744623652576,4.90002,1632.7,1632.5,0.7547]
[1744623652976,0.16853849,1632.6,1632.5,0.7547]
[1744623653177,0.16853849,1632.6,1632.5,5.65515]
[1744623653403,3.0598312,1632.9,1632.7,4.89984]
[1744623653707,7.9591012,1632.9,1632.6,4.89999]
[1744623653910,12.8585112,1632.9,1632.6,4.89999]
[1744623654106,12.79868,1632.9,1632.6,4.89999]
[1744623654298,4.89962,1632.8,1632.5,5.65511]
[1744623654505,4.89962,1632.8,1632.5,6.710689]
[1744623655821,4.89962,1632.8,1632.5,11.611049]
[1744623656012,7.89927,1632.9,1632.6,4.90006]
[1744623656217,0.8061,1633.0,1632.5,1.810279]
[1744623656385,3.0598312,1633.0,1632.8,5.68223]
[1744623657405,3.0598312,1633.0,1632.8,0.7828]
[1744623657406,7.9587912,1633.0,1632.8,0.7828]
[1744623657594,4.89936,1632.9,1632.6,5.68289]
[1744623658205,4.9591912,1632.9,1632.6,10.58295]
[1744623658528,9.8586512,1632.9,1632.6,5.68286]
[1744623658712,4.9591912,1632.9,1632.6,10.5829]
[1744623658914,9.79869562,1633.1,1632.7,4.89977]
[1744623658915,11.56381269,1633.1,1632.7,4.89977]
[1744623659114,0.0598312,1633.0,1632.8,4.89954]
[1744623659414,4.9587912,1633.0,1632.7,9.79952]
[1744623659602,0.0598312,1633.0,1632.8,4.89948]
[1744623659804,4.89897,1633.0,1632.7,4.89973]
[1744623660008,4.89897,1633.0,1632.7,5.573812]
[1744623660614,4.89897,1633.0,1632.7,10.473552]
[1744623660927,9.79807,1633.0,1632.7,0.674082]
[1744623661108,4.89897,1633.0,1632.7,4.89982]
[1744623661302,4.89927,1632.9,1632.6,6.74116]
[1744623661633,9.79816,1633.0,1632.7,4.89984]
[1744623661799,4.89897,1633.0,1632.7,4.89984]
[1744623661999,4.89897,1633.0,1632.7,9.79961]
[1744623662298,9.79809,1633.0,1632.7,4.89977]
[1744623663337,4.89897,1633.0,1632.7,4.89977]
[1744623663527,9.79804,1633.0,1632.7,4.89977]
[1744623664030,8.40668389,1633.1,1632.7,4.89974]
[1744623664203,3.0,1633.1,1632.9,5.66536]
[1744623664408,7.89867,1633.1,1632.9,0.7663]
[1744623664617,3.0,1633.1,1632.9,0.7663]
[1744623664931,3.0598312,1633.1,1632.9,5.66555]
[1744623665347,3.0,1633.1,1632.9,5.66544]
[1744623665543,5.7275,1633.3,1633.0,5.465414]
[1744623665840,4.89869,1633.1,1632.9,0.7663]
[1744623665999,5.71055,1633.0,1632.7,9.79955]
[1744623666199,0.8115,1633.0,1632.7,9.79955]
[1744623666731,0.8115,1633.0,1632.8,4.89955]
[1744623666911,5.7700212,1633.1,1632.8,4.89955]
[1744623667343,10.6688112,1633.1,1632.8,4.89955]
[1744623667835,0.16385565,1633.0,1632.7,9.79958]
[1744623668233,0.16385565,1633.0,1632.8,4.89954]
[1744623668863,5.06283565,1633.0,1632.7,4.89979]
[1744623669044,9.96202565,1633.0,1632.7,4.89979]
[1744623669240,0.16385565,1633.0,1632.8,4.89955]
[1744623669439,5.06283565,1633.0,1632.7,4.89976]
[1744623669667,4.9591012,1632.9,1632.6,11.89208]
[1744623669972,4.9591012,1632.9,1632.6,4.90014]
[1744623670145,0.16287025,1632.8,1632.6,9.8002]
[1744623670465,4.899,1633.0,1632.7,10.5673]
[1744623670766,4.899,1633.0,1632.8,4.89936]
[1744623670767,0.16336298,1632.9,1632.8,4.89936]
[1744623674342,0.16336298,1632.9,1632.8,5.956027]
[1744623674760,6.2298312,1633.2,1632.8,1.056667]
[1744623674964,11.1282012,1633.2,1632.9,9.7983]
[1744623675270,11.1282012,1633.2,1632.9,4.89914]
[1744623675763,11.1282012,1633.2,1632.9,9.79829]
[1744623675957,6.2298312,1633.2,1632.9,9.79829]
[1744623676367,11.1282112,1633.2,1632.9,4.89914]
[1744623676541,16.0267012,1633.2,1632.9,4.89914]
[1744623676744,15.96687,1633.2,1632.9,4.89914]
[1744623676943,11.06838,1633.2,1632.9,4.89914]
[1744623677173,11.1282112,1633.2,1632.9,4.89914]
[1744623677467,6.2298312,1633.2,1632.9,5.879002]
[1744623677675,6.2298312,1633.2,1632.9,4.89914]
[1744623677971,3.0,1633.4,1633.0,0.8053]
[1744623678172,0.0598312,1633.3,1633.1,4.89857]
[1744623678355,0.0598312,1633.3,1632.9,4.89921]
[1744623678671,0.0598312,1633.3,1632.9,9.79842]
[1744623678672,4.9581412,1633.3,1632.9,9.79842]
[1744623678870,4.9581412,1633.3,1633.0,4.89895]
[1744623679041,4.9581412,1633.3,1633.0,9.79782]
[1744623679232,4.9581412,1633.3,1633.0,9.79772]
[1744623680676,4.9581412,1633.3,1633.0,4.89885]
[1744623681270,4.9581412,1633.3,1633.0,9.7977]
[1744623682075,0.0598312,1633.3,1633.1,4.89863]
[1744623682462,0.0598312,1633.3,1633.0,9.7977]
[1744623682660,4.9578912,1633.3,1633.0,4.89885]
[1744623682972,0.13926176,1633.2,1633.0,9.79771]
[1744623683172,0.13926176,1633.2,1633.1,4.89865]
[1744623683467,0.13926176,1633.2,1633.1,5.65645]
[1744623683671,8.41405749,1633.4,1633.1,5.65645]
[1744623683873,0.13975425,1633.3,1633.1,0.7578]
[1744623684044,0.13975425,1633.3,1633.1,5.65617]
[1744623684244,0.13975425,1633.3,1633.2,4.89835]
[1744623685639,16.8557712,1633.5,1633.2,4.89835]
[1744623685953,0.14075668,1633.4,1633.2,4.89835]
[1744623686165,0.14075668,1633.4,1633.2,9.7967]
[1744623687201,0.31939891,1633.6,1633.4,4.89757]
[1744623687363,0.51968466,1633.7,1633.4,9.79521]
[1744623687565,4.89717,1633.6,1633.3,5.66695]
[1744623689011,0.8103,1633.5,1633.1,5.66199]
[1744623689172,4.89807,1633.3,1633.0,6.9754]
[1744623689356,5.7176212,1633.2,1632.9,5.67228]
[1744623690065,5.65779,1633.2,1632.9,5.67228]
[1744623690280,5.65779,1633.2,1632.9,5.67223]
[1744623690469,5.65779,1633.2,1632.9,6.729403]
[1744623690984,0.0598312,1633.1,1632.8,9.799]
[1744623691368,4.9585112,1633.1,1632.8,4.8995]
[1744623691681,4.9585112,1633.1,1632.7,11.92112]
[1744623691984,4.9585112,1633.1,1632.7,16.82081]
[1744623692187,0.0598312,1633.1,1632.9,4.89918]
[1744623693396,0.0598312,1633.1,1632.8,4.89948]
[1744623693603,0.0598312,1633.1,1632.8,9.79896]
[1744623694379,0.0598312,1633.1,1632.8,10.859786]
[1744623694594,5.7175912,1633.2,1632.9,4.89925]
[1744623695777,10.6160812,1633.2,1632.8,9.79896]
[1744623695982,11.08355999,1633.2,1632.8,9.79896]
[1744623696159,4.89878,1633.1,1632.7,5.70909]
[1744623696361,0.7843,1632.9,1632.7,4.89979]
[1744623696561,0.7843,1632.9,1632.6,4.90011]
[1744623696785,5.68368,1632.9,1632.6,4.90011]
[1744623697291,5.68368,1632.9,1632.6,9.80016]
[1744623697497,0.7843,1632.9,1632.6,9.80016]
[1744623697876,0.13966295,1632.8,1632.6,9.80016]
[1744623698061,0.13966295,1632.8,1632.6,11.480116]
[1744623698260,0.7843,1632.9,1632.6,11.480116]
[1744623698666,0.13966295,1632.8,1632.6,11.480116]
[1744623698997,0.7843,1632.9,1632.6,11.480116]
[1744623699195,0.13907152,1632.7,1632.5,5.68769]
[1744623699499,5.68375,1632.9,1632.6,4.90006]
[1744623699667,5.68375,1632.9,1632.6,4.90002]
[1744623700995,4.9594212,1632.8,1632.5,9.80074]
[1744623701198,0.0598312,1632.8,1632.5,9.80074]
[1744623701498,0.0598312,1632.8,1632.5,10.856104]
[1744623701703,5.68375,1632.9,1632.6,4.90014]
[1744623701999,10.6430812,1632.9,1632.5,10.856054]
[1744623702367,10.6430812,1632.9,1632.5,5.955694]
[1744623702595,4.89957,1632.8,1632.5,5.955694]
[1744623702769,4.89986,1632.7,1632.4,5.65361]
[1744623702968,4.89986,1632.7,1632.4,10.55428]
[1744623703902,4.89957,1632.8,1632.5,9.80086]
[1744623704097,4.89957,1632.8,1632.5,10.856236]
[1744623704470,10.6428312,1632.9,1632.5,10.856236]
[1744623704678,5.7434512,1632.9,1632.6,4.90006]
[1744623704883,10.6429812,1632.9,1632.5,6.01692473]
[1744623705096,5.7434512,1632.9,1632.6,4.90005]
[1744623705608,5.7434512,1632.9,1632.6,9.80012]
[1744623705895,5.7434512,1632.9,1632.6,4.90005]
[1744623707071,10.6428912,1632.9,1632.6,4.90005]
[1744623707603,5.7434512,1632.9,1632.6,9.80011]
[1744623707799,10.6428312,1632.9,1632.6,4.90005]
[1744623708007,5.7434512,1632.9,1632.6,4.90005]
[1744623708500,10.6428412,1632.9,1632.6,4.90005]
[1744623708707,4.89957,1632.8,1632.5,10.856076]
[1744623709486,4.89957,1632.8,1632.5,5.955716]
[1744623709686,4.89957,1632.8,1632.5,10.856086]
[1744623710109,9.79926,1632.8,1632.5,4.90034]
[1744623710587,9.79928,1632.8,1632.5,4.90034]
[1744623711311,4.89957,1632.8,1632.5,4.90034]
[1744623711708,9.79927,1632.8,1632.5,4.90034]
[1744623712005,4.89957,1632.8,1632.5,4.90034]
[1744623712407,9.79924,1632.8,1632.5,4.90034]